bitfinex/quotes_SOLUSD_20241107
["timestamp","ask_amount","ask_price","bid_price","bid_amount"]
[1730945117005,51.7552984,190.22,190.14,27.9784144]
[1730945117006,27.9784144,190.2,190.14,27.9784144]
[1730945117325,23.776884,190.2,190.16,27.9784144]
[1730945117527,51.7552984,190.21,190.15,27.9784144]
[1730945118021,23.776884,190.18,190.13,27.9784144]
[1730945118221,51.7552984,190.18,190.12,27.9784144]
[1730945118415,23.776884,190.18,190.13,27.9784144]
[1730945118617,23.776884,190.2,190.15,27.9784144]
[1730945119016,23.776884,190.2,190.16,27.9784144]
[1730945119206,23.776884,190.21,190.16,27.9784144]
[1730945119408,23.776884,190.22,190.17,27.9784144]
[1730945120029,27.9784144,190.23,190.17,27.9784144]
[1730945120234,27.9784144,190.24,190.17,27.9784144]
[1730945120412,0.12549,190.24,190.18,27.9784144]
[1730945120823,28.1039044,190.22,190.15,27.9784144]
[1730945121010,27.9784144,190.18,190.12,27.9784144]
[1730945121216,51.7552984,190.17,190.11,27.9784144]
[1730945121529,27.9784144,190.16,190.1,27.9784144]
[1730945122640,16.5077,190.19,190.0,16.0611]
[1730945122641,27.9784144,190.11,190.0,16.0611]
[1730945122811,51.7552984,190.1,190.03,27.9784144]
[1730945123018,27.9784144,190.09,190.03,27.9784144]
[1730945123216,51.7552984,190.08,190.02,27.9784144]
[1730945123639,27.9784144,190.07,190.01,27.9784144]
[1730945124239,27.9784144,190.07,189.96,27.9784144]
[1730945124240,27.9784144,190.02,189.96,27.9784144]
[1730945124623,27.9784144,190.01,189.94,27.9784144]
[1730945125144,23.776884,190.0,189.95,27.9784144]
[1730945125308,23.776884,190.07,189.99,27.9784144]
[1730945125512,23.776884,190.07,189.91,0.1]
[1730945125513,51.7552984,190.07,190.01,27.9784144]
[1730945125816,51.7552984,190.05,189.99,27.9784144]
[1730945126331,23.776884,190.05,189.99,27.9784144]
[1730945126831,23.776884,190.04,189.99,27.9784144]
[1730945127243,23.776884,190.04,189.95,27.9784144]
[1730945127407,27.9784144,189.99,189.9,0.12549]
[1730945127610,51.7552984,189.98,189.92,27.9784144]
[1730945127810,27.9784144,189.97,189.91,27.9784144]
[1730945128012,51.7552984,189.98,189.92,27.9784144]
[1730945128243,27.9784144,189.97,189.91,27.9784144]
[1730945128536,51.7552984,189.95,189.9,0.12549]
[1730945129746,23.776884,189.95,189.9,28.1039044]
[1730945130120,6.3529,189.98,189.93,27.9784144]
[1730945130121,23.776884,189.97,189.93,27.9784144]
[1730945130439,23.776884,190.0,189.95,27.9784144]
[1730945130850,6.3922,190.02,189.98,27.9784144]
[1730945131144,16.5567,190.04,190.0,27.9784144]
[1730945131343,16.5567,190.04,190.01,27.9784144]
[1730945131539,27.9784144,190.02,189.91,6.0297]
[1730945131735,0.12549,190.03,189.9,0.12549]
[1730945132623,23.902374,190.03,189.9,0.12549]
[1730945132940,23.776884,189.99,189.96,27.9784144]
[1730945133146,16.5567,190.04,189.98,27.9784144]
[1730945133338,16.5567,190.04,189.99,27.9784144]
[1730945133531,16.5567,190.04,190.0,27.9784144]
[1730945133841,5.43976089,190.06,190.02,27.9784144]
[1730945134041,5.43976089,190.06,189.97,27.9784144]
[1730945134248,43.1753144,190.09,190.03,27.9784144]
[1730945134425,48.43055597,190.09,190.03,27.9784144]
[1730945135048,27.9784144,190.08,190.02,27.9784144]
[1730945135232,23.776884,190.07,190.02,27.9784144]
[1730945135437,23.776884,190.08,190.03,27.9784144]
[1730945135725,51.7552984,190.08,190.01,27.9784144]
[1730945135933,23.776884,190.06,190.0,27.9784144]
[1730945136132,23.776884,190.04,189.98,27.9784144]
[1730945136521,51.7552984,190.04,189.98,27.9784144]
[1730945137955,23.776884,190.04,189.99,27.9784144]
[1730945138545,48.43055597,190.09,190.03,27.9784144]
[1730945138756,20.45214157,190.09,190.04,27.9784144]
[1730945138936,5.43948119,190.09,190.04,27.9784144]
[1730945139254,0.12549,190.1,190.05,25.29856465]
[1730945139939,6.1176,190.11,190.05,25.29856465]
[1730945140855,31.41616465,190.11,190.05,25.29856465]
[1730945141723,25.29856465,190.08,189.94,20.2]
[1730945141954,25.29856465,190.08,190.02,25.29856465]
[1730945142253,23.776884,190.07,190.02,25.29856465]
[1730945142830,25.29856465,190.1,190.04,25.29856465]
[1730945143043,23.776884,190.1,190.06,25.29856465]
[1730945143761,15.9751,190.13,190.08,25.29856465]
[1730945143933,23.776884,190.12,190.08,25.29856465]
[1730945144635,23.776884,190.12,190.07,25.29856465]
[1730945144841,49.07544865,190.12,189.98,0.1]
[1730945145038,23.776884,190.1,190.05,25.29856465]
[1730945146571,23.776884,190.1,190.04,25.29856465]
[1730945146729,23.776884,190.07,190.02,25.29856465]
[1730945146935,49.07544865,190.07,190.01,25.29856465]
[1730945147145,49.07544865,190.05,189.93,16.459]
[1730945147454,25.29856465,190.05,189.99,25.29856465]
[1730945147656,0.1,190.12,189.93,16.559]
[1730945147657,23.776884,190.04,190.0,25.29856465]
[1730945147869,23.776884,190.05,190.0,25.29856465]
[1730945148263,25.29856465,190.04,189.93,16.459]
[1730945148559,49.07544865,190.05,189.99,25.29856465]
[1730945150533,49.07544865,190.05,190.0,25.29856465]
[1730945150729,23.776884,190.05,190.0,25.29856465]
[1730945152435,31.49256465,190.11,190.04,25.29856465]
[1730945152641,31.49256465,190.11,190.05,25.29856465]
[1730945152850,0.12549,190.1,190.05,25.29856465]
[1730945153548,36.92757426,190.11,190.05,25.29856465]
[1730945153857,23.776884,190.1,190.05,25.29856465]
[1730945155270,25.29856465,190.07,190.01,25.29856465]
[1730945155578,25.29856465,190.05,189.99,25.29856465]
[1730945155860,49.07544865,190.04,189.98,25.29856465]
[1730945156070,23.776884,190.04,189.99,25.29856465]
[1730945156761,23.776884,190.07,190.02,25.29856465]
[1730945157067,49.07544865,190.07,190.01,25.29856465]
[1730945160062,23.776884,190.07,190.01,25.29856465]
[1730945160376,49.07544865,190.07,190.01,25.29856465]
[1730945160671,11.62900961,190.11,189.93,16.459]
[1730945160672,23.776884,190.05,190.0,25.29856465]
[1730945161347,23.776884,190.07,190.01,25.29856465]
[1730945161643,23.776884,190.07,189.93,16.559]
[1730945161644,11.62900961,190.11,190.06,25.29856465]
[1730945161871,15.9751,190.13,190.08,25.29856465]
[1730945162376,41.27366465,190.13,190.0,0.12549]
[1730945162585,41.27366465,190.13,190.07,25.29856465]
[1730945162764,15.9751,190.13,190.08,25.29856465]
[1730945163475,23.776884,190.12,190.08,25.29856465]
[1730945165957,23.776884,190.13,190.09,25.29856465]
[1730945166153,23.776884,190.15,190.11,25.29856465]
[1730945166358,15.0393,190.18,190.13,25.29856465]
[1730945166560,15.0393,190.22,190.17,25.29856465]
[1730945166847,31.64016465,190.25,190.19,25.29856465]
[1730945167051,6.3416,190.25,190.2,25.29856465]
[1730945167448,20.4747107,190.27,190.22,25.29856465]
[1730945167889,25.29856465,190.26,190.2,25.29856465]
[1730945168061,25.29856465,190.25,190.19,25.29856465]
[1730945168759,23.776884,190.24,190.19,25.29856465]
[1730945168954,23.776884,190.24,190.18,25.29856465]
[1730945169177,49.07544865,190.24,190.18,25.29856465]
[1730945169558,49.07544865,190.24,190.17,25.29856465]
[1730945170260,49.07544865,190.24,190.18,25.29856465]
[1730945170454,49.07544865,190.24,190.19,25.29856465]
[1730945170455,23.776884,190.24,190.19,25.29856465]
[1730945170671,23.776884,190.25,190.11,21.9493]
[1730945170867,23.776884,190.26,190.22,25.29856465]
[1730945171068,25.29856465,190.31,190.25,25.29856465]
[1730945171269,25.29856465,190.33,190.27,25.29856465]
[1730945171475,25.29856465,190.32,190.26,25.29856465]
[1730945172067,31.88296465,190.34,190.28,25.29856465]
[1730945172268,25.29856465,190.35,190.29,25.29856465]
[1730945172476,41.56146465,190.36,190.3,25.29856465]
[1730945172775,31.51836465,190.38,190.32,25.29856465]
[1730945172961,25.87709785,190.4,190.34,25.29856465]
[1730945173277,25.87709785,190.4,190.29,25.29856465]
[1730945173278,25.29856465,190.36,190.29,25.29856465]
[1730945173470,25.29856465,190.35,190.22,20.0]
[1730945173678,25.29856465,190.35,190.29,25.29856465]
[1730945174576,23.776884,190.34,190.29,25.29856465]
[1730945175585,49.07544865,190.32,190.26,25.29856465]
[1730945175972,23.776884,190.32,190.27,25.29856465]
[1730945176380,25.29856465,190.35,190.29,25.29856465]
[1730945176580,23.776884,190.34,190.29,25.29856465]
[1730945176794,23.776884,190.34,190.22,20.1]
[1730945176795,25.29856465,190.38,190.32,25.29856465]
[1730945176983,0.5785332,190.4,190.35,25.29856465]
[1730945177285,0.5785332,190.4,190.36,25.29856465]
[1730945177688,0.5785332,190.4,190.35,25.29856465]
[1730945177904,0.5785332,190.4,190.27,0.1]
[1730945177905,25.87709785,190.4,190.34,25.29856465]
[1730945178288,0.5785332,190.4,190.35,25.29856465]
[1730945179279,23.776884,190.39,190.35,25.29856465]
[1730945179481,0.5785332,190.4,190.35,25.29856465]
[1730945180189,0.5785332,190.4,190.34,25.29856465]
[1730945180190,25.87709785,190.4,190.34,25.29856465]
[1730945180702,23.776884,190.39,190.34,25.29856465]
[1730945181397,25.29856465,190.37,190.26,0.2]
[1730945181589,23.776884,190.39,190.34,25.29856465]
[1730945181791,0.5785332,190.4,190.35,25.29856465]
[1730945182291,0.5785332,190.4,190.36,25.29856465]
[1730945182485,0.5785332,190.4,190.37,25.29856465]
[1730945182693,0.5785332,190.4,190.39,25.29856465]
[1730945182999,0.5785332,190.4,190.39,50.5971293]
[1730945183583,0.5785332,190.4,190.39,25.29856465]
[1730945184198,0.5785332,190.4,190.39,50.5971293]
[1730945184387,0.5785332,190.4,190.39,50.7226193]
[1730945184800,0.5785332,190.4,190.39,25.42405465]
[1730945185301,47.44626465,190.54,190.39,70.7971293]
[1730945185474,25.29856465,190.53,190.47,25.29856465]
[1730945185905,25.29856465,190.52,190.46,25.29856465]
[1730945186492,25.29856465,190.5,190.44,25.29856465]
[1730945187002,25.29856465,190.51,190.45,25.29856465]
[1730945187300,25.29856465,190.52,190.46,25.29856465]
[1730945188594,23.776884,190.53,190.45,25.29856465]
[1730945188776,25.29856465,190.51,190.45,25.29856465]
[1730945189202,25.19161743,190.51,190.45,25.19161743]
[1730945189886,25.19161743,190.49,190.43,25.19161743]
[1730945190097,23.776884,190.53,190.44,25.19161743]
[1730945190098,25.19161743,190.5,190.44,25.19161743]
[1730945190278,23.776884,190.53,190.45,25.19161743]
[1730945190584,25.19161743,190.51,190.45,25.19161743]
[1730945190977,52.76569967,190.54,190.48,25.19161743]
[1730945191200,15.40946754,190.57,190.52,25.19161743]
[1730945191201,25.19161743,190.57,190.52,25.19161743]
[1730945191508,31.26131743,190.58,190.52,25.19161743]
[1730945191797,25.19161743,190.57,190.51,25.19161743]
[1730945192179,6.0697,190.58,190.43,0.22549]
[1730945192180,25.19161743,190.56,190.5,25.19161743]
[1730945192784,31.26131743,190.58,190.52,25.19161743]
[1730945192988,25.19161743,190.57,190.51,25.19161743]
[1730945193210,25.19161743,190.56,190.5,25.19161743]
[1730945193410,25.19161743,190.55,190.49,25.19161743]
[1730945193583,6.0697,190.58,190.52,25.19161743]
[1730945194088,6.0697,190.58,190.45,0.1]
[1730945194089,25.19161743,190.57,190.51,25.19161743]
[1730945194287,6.0697,190.58,190.45,0.12549]
[1730945194288,25.19161743,190.56,190.5,25.19161743]
[1730945194895,25.19161743,190.57,190.51,25.19161743]
[1730945195097,25.19161743,190.56,190.5,25.19161743]
[1730945195795,25.19161743,190.57,190.51,25.19161743]
[1730945196502,25.19161743,190.56,190.51,25.19161743]
[1730945196707,25.19161743,190.57,190.51,25.19161743]
[1730945197212,25.19161743,190.58,190.52,25.19161743]
[1730945197506,41.76895063,190.59,190.53,25.19161743]
[1730945198405,41.76895063,190.59,190.45,0.22549]
[1730945198406,25.19161743,190.58,190.52,25.19161743]
[1730945198789,16.5773332,190.59,190.52,25.19161743]
[1730945198790,0.5785332,190.59,190.57,25.19161743]
[1730945199090,0.5785332,190.59,190.58,25.31710743]
[1730945200108,0.5785332,190.59,190.58,50.60872486]
[1730945200292,15.8813,190.76,190.61,20.32549]
[1730945200489,41.07291743,190.76,190.64,0.1]
[1730945200694,25.19161743,190.74,190.68,25.19161743]
[1730945201012,7.1249332,190.78,190.64,0.1]
[1730945201184,7.1249332,190.78,190.65,0.1]
[1730945201510,25.19161743,190.76,190.69,25.19161743]
[1730945201712,7.1249332,190.78,190.69,25.19161743]
[1730945201713,25.19161743,190.75,190.69,25.19161743]
[1730945201887,25.19161743,190.74,190.69,0.12549]
[1730945202086,25.19161743,190.75,190.69,25.31710743]
[1730945202393,25.19161743,190.75,190.69,25.19161743]
[1730945202596,25.19161743,190.71,190.65,25.19161743]
[1730945202898,25.19161743,190.68,190.62,25.19161743]
[1730945203985,25.14793697,190.68,190.61,25.14793697]
[1730945205027,25.14793697,190.67,190.61,25.14793697]
[1730945205232,23.902374,190.73,190.62,25.14793697]
[1730945205429,25.14793697,190.69,190.62,25.14793697]
[1730945205824,25.14793697,190.68,190.62,25.14793697]
[1730945206124,25.14793697,190.67,190.61,25.14793697]
[1730945206427,25.14793697,190.67,190.6,25.14793697]
[1730945206805,25.14793697,190.66,190.6,25.14793697]
[1730945207217,25.14793697,190.65,190.59,25.14793697]
[1730945207415,25.14793697,190.66,190.6,25.14793697]
[1730945208423,15.8613,190.71,190.58,25.14793697]
[1730945208424,25.14793697,190.64,190.58,25.14793697]
[1730945209633,25.14793697,190.63,190.57,25.14793697]
[1730945210101,25.14793697,190.62,190.56,25.14793697]
[1730945210504,25.14793697,190.62,190.57,0.12549]
[1730945210705,25.14793697,190.62,190.56,25.14793697]
[1730945211431,25.14793697,190.61,190.55,25.14793697]
[1730945211628,25.14793697,190.61,190.54,25.14793697]
[1730945212129,25.14793697,190.61,190.55,25.14793697]
[1730945212318,25.14793697,190.62,190.56,25.14793697]
[1730945212509,25.14793697,190.62,190.5,25.14793697]
[1730945212510,25.14793697,190.61,190.55,25.14793697]
[1730945212907,25.14793697,190.59,190.53,25.14793697]
[1730945213517,25.14793697,190.59,190.52,25.14793697]
[1730945213914,25.14793697,190.58,190.52,25.14793697]
[1730945215139,41.66913697,190.61,190.55,25.14793697]
[1730945215520,25.14793697,190.59,190.53,25.14793697]
[1730945215729,23.776884,190.64,190.58,25.14793697]
[1730945215929,25.14793697,190.63,190.57,25.14793697]
[1730945216138,48.92482097,190.62,190.56,25.14793697]
[1730945216311,23.776884,190.6,190.55,25.14793697]
[1730945216513,48.92482097,190.6,190.54,25.14793697]
[1730945217028,23.776884,190.6,190.55,25.14793697]
[1730945218423,23.776884,190.6,190.54,25.14793697]
[1730945218630,23.776884,190.6,190.55,25.14793697]
[1730945218836,23.776884,190.6,190.49,0.12549]
[1730945218837,23.776884,190.6,190.54,25.14793697]
[1730945219333,48.92482097,190.6,190.53,25.14793697]
[1730945219837,48.92482097,190.6,190.54,25.14793697]
[1730945221326,23.776884,190.58,190.52,25.14793697]
[1730945221527,48.92482097,190.58,190.52,25.14793697]
[1730945221918,48.92482097,190.58,190.42,0.2]
[1730945221919,23.776884,190.58,190.51,25.14793697]
[1730945222141,25.14793697,190.54,190.48,25.14793697]
[1730945222435,25.14793697,190.52,190.45,25.14793697]
[1730945222641,25.14793697,190.48,190.39,15.1397]
[1730945222849,25.14793697,190.48,190.42,25.14793697]
[1730945223026,23.776884,190.48,190.43,25.14793697]
[1730945223335,25.14793697,190.5,190.43,25.14793697]
[1730945223542,48.92482097,190.47,190.4,25.14793697]
[1730945223753,25.14793697,190.5,190.43,25.14793697]
[1730945223918,23.776884,190.49,190.45,25.14793697]
[1730945224128,25.14793697,190.54,190.48,25.14793697]
[1730945224316,6.1529,190.58,190.45,15.78109]
[1730945224520,6.1529,190.58,190.46,0.12549]
[1730945225139,6.1529,190.58,190.46,20.32549]
[1730945225341,16.0624,190.61,190.57,25.14793697]
[1730945225531,7.60151412,190.65,190.58,25.14793697]
[1730945225532,25.14793697,190.64,190.58,25.14793697]
[1730945225729,6.3123,190.65,190.6,25.14793697]
[1730945225935,6.3123,190.65,190.52,0.2]
[1730945225936,25.14793697,190.65,190.59,25.14793697]
[1730945226121,25.14793697,190.64,190.57,25.14793697]
[1730945226523,25.14793697,190.62,190.56,25.14793697]
[1730945226757,25.14793697,190.6,190.54,25.14793697]
[1730945226921,25.14793697,190.6,190.53,25.14793697]
[1730945227121,48.92482097,190.59,190.53,25.14793697]
[1730945227538,25.14793697,190.6,190.53,25.14793697]
[1730945227845,25.14793697,190.62,190.55,25.14793697]
[1730945228044,25.14793697,190.57,190.51,25.14793697]
[1730945228251,25.14793697,190.57,190.5,25.14793697]
[1730945228557,25.14793697,190.57,190.51,25.14793697]
[1730945228756,25.14793697,190.58,190.52,25.14793697]
[1730945230144,23.776884,190.58,190.53,25.14793697]
[1730945230345,48.92482097,190.58,190.52,25.14793697]
[1730945230646,25.14793697,190.57,190.51,25.14793697]
[1730945231052,48.92482097,190.58,190.51,25.14793697]
[1730945231348,23.776884,190.58,190.53,25.14793697]
[1730945231644,25.14793697,190.59,190.53,25.14793697]
[1730945231847,25.14793697,190.63,190.57,25.14793697]
[1730945232027,15.105,190.66,190.51,0.12549]
[1730945232028,25.14793697,190.64,190.58,25.14793697]
[1730945233042,25.14793697,190.63,190.57,25.14793697]
[1730945233231,25.14793697,190.64,190.58,25.14793697]
[1730945233726,25.14793697,190.63,190.57,25.14793697]
[1730945234049,25.14793697,190.65,190.59,25.14793697]
[1730945234246,25.14793697,190.63,190.57,25.14793697]
[1730945234426,25.14793697,190.62,190.56,25.14793697]
[1730945234928,25.14793697,190.59,190.53,25.14793697]
[1730945235453,25.14793697,190.58,190.52,25.14793697]
[1730945235646,25.14793697,190.57,190.5,25.14793697]
[1730945235853,25.14793697,190.56,190.5,25.14793697]
[1730945236148,25.14793697,190.55,190.49,25.14793697]
[1730945238261,25.14793697,190.58,190.51,25.14793697]
[1730945238436,31.74923697,190.59,190.53,25.14793697]
[1730945239438,25.14793697,190.56,190.5,25.14793697]
[1730945239833,25.14793697,190.58,190.51,25.14793697]
[1730945240037,11.45254447,190.65,190.57,25.14793697]
[1730945240237,25.14793697,190.66,190.6,25.14793697]
[1730945240441,25.14793697,190.68,190.61,25.14793697]
[1730945241033,25.14793697,190.7,190.64,25.14793697]
[1730945241236,25.14793697,190.69,190.63,25.14793697]
[1730945241440,25.14793697,190.67,190.61,25.14793697]
[1730945241960,25.14793697,190.68,190.61,25.14793697]
[1730945242328,25.14793697,190.67,190.6,25.14793697]
[1730945242650,25.14793697,190.65,190.59,25.14793697]
[1730945242851,25.14793697,190.65,190.55,6.226]
[1730945242852,25.14793697,190.64,190.58,25.14793697]
[1730945243155,25.14793697,190.61,190.55,25.14793697]
[1730945243851,25.14793697,190.62,190.56,25.14793697]
[1730945244031,25.14793697,190.63,190.57,25.14793697]
[1730945244237,25.14793697,190.61,190.55,25.14793697]
[1730945245439,25.14793697,190.6,190.54,25.14793697]
[1730945246556,25.14793697,190.58,190.52,25.14793697]
[1730945247657,25.14793697,190.54,190.48,25.14793697]
[1730945248458,25.14793697,190.56,190.5,25.14793697]
[1730945248632,25.14793697,190.57,190.51,25.14793697]
[1730945249633,25.14793697,190.58,190.52,25.14793697]
[1730945250063,25.14793697,190.57,190.51,25.14793697]
[1730945250552,48.92482097,190.55,190.49,25.14793697]
[1730945251261,25.14793697,190.58,190.52,25.14793697]
[1730945251629,25.14793697,190.55,190.49,25.14793697]
[1730945252360,25.14793697,190.57,190.51,25.14793697]
[1730945252755,25.14793697,190.57,190.5,25.14793697]
[1730945254256,25.14793697,190.57,190.51,25.14793697]
[1730945255066,25.14793697,190.57,190.5,25.14793697]
[1730945256649,25.14793697,190.58,190.52,25.14793697]
[1730945256855,30.57459649,190.6,190.53,25.14793697]
[1730945257033,6.5901,190.63,190.59,25.14793697]
[1730945257241,16.5277,190.66,190.61,25.14793697]
[1730945257447,6.0984,190.68,190.63,25.14793697]
[1730945257758,6.0984,190.68,190.61,25.14793697]
[1730945257969,25.14793697,190.67,190.61,25.14793697]
[1730945259441,25.14793697,190.68,190.61,25.14793697]
[1730945259639,40.49953697,190.72,190.65,25.14793697]
[1730945260241,25.14793697,190.7,190.64,25.14793697]
[1730945260446,25.14793697,190.69,190.63,25.14793697]
[1730945260638,25.14793697,190.68,190.62,25.14793697]
[1730945260956,25.14793697,190.68,190.61,25.14793697]
[1730945261136,25.14793697,190.69,190.63,25.14793697]
[1730945261538,25.14793697,190.68,190.61,25.14793697]
[1730945262667,25.14793697,190.67,190.61,25.14793697]
[1730945263039,25.14793697,190.69,190.63,25.14793697]
[1730945263232,25.14793697,190.69,190.62,25.14793697]
[1730945263743,25.14793697,190.68,190.62,25.14793697]
[1730945263945,25.14793697,190.73,190.67,25.14793697]
[1730945264169,25.14793697,190.76,190.71,25.14793697]
[1730945264373,25.14793697,190.74,190.68,25.14793697]
[1730945264569,0.5785332,190.78,190.61,16.2461]
[1730945264870,0.5785332,190.78,190.62,0.12549]
[1730945265058,5.8201332,190.78,190.62,0.12549]
[1730945265264,0.5785332,190.78,190.62,0.12549]
[1730945265578,25.14793697,190.69,190.63,25.14793697]
[1730945265759,25.14793697,190.68,190.62,25.14793697]
[1730945265961,25.14793697,190.66,190.6,25.14793697]
[1730945266363,25.14793697,190.67,190.61,25.14793697]
[1730945267863,25.14793697,190.68,190.62,25.14793697]
[1730945268067,25.14793697,190.66,190.61,25.14793697]
[1730945268959,25.14793697,190.66,190.56,15.9821]
[1730945268960,25.14793697,190.69,190.64,25.14793697]
[1730945269156,25.14793697,190.68,190.62,25.14793697]
[1730945269366,25.14793697,190.68,190.61,25.14793697]
[1730945270260,25.14793697,190.67,190.61,25.14793697]
[1730945271272,16.5261,190.72,190.56,15.9821]
[1730945271273,25.14793697,190.66,190.6,25.14793697]
[1730945271961,25.14793697,190.67,190.61,25.14793697]
[1730945272886,25.14793697,190.66,190.6,25.14793697]
[1730945273058,25.14793697,190.67,190.61,25.14793697]
[1730945273458,25.14793697,190.69,190.63,25.14793697]
[1730945273677,25.14793697,190.7,190.64,25.14793697]
[1730945274780,25.14793697,190.69,190.63,25.14793697]
[1730945274966,25.14793697,190.69,190.57,0.12549]
[1730945274967,25.14793697,190.68,190.62,25.14793697]
[1730945275688,25.14793697,190.65,190.59,25.14793697]
[1730945275861,25.14793697,190.65,190.56,15.9821]
[1730945276178,25.14793697,190.65,190.59,25.14793697]
[1730945276562,25.14793697,190.66,190.6,25.14793697]
[1730945276764,25.14793697,190.65,190.59,25.14793697]
[1730945276961,25.14793697,190.67,190.61,25.14793697]
[1730945277165,25.14793697,190.69,190.63,25.14793697]
[1730945277883,25.14793697,190.71,190.65,25.14793697]
[1730945278659,25.14793697,190.7,190.64,25.14793697]
[1730945278880,25.14793697,190.69,190.63,25.14793697]
[1730945279253,6.4231,190.74,190.56,15.9821]
[1730945279460,15.71637082,190.69,190.63,15.71637082]
[1730945281064,15.71637082,190.7,190.64,15.71637082]
[1730945281474,15.71637082,190.69,190.63,15.71637082]
[1730945281877,15.71637082,190.68,190.62,15.71637082]
[1730945282157,15.71637082,190.67,190.61,15.71637082]
[1730945283089,15.71637082,190.66,190.6,15.71637082]
[1730945283380,15.71637082,190.67,190.61,15.71637082]
[1730945283594,15.71637082,190.68,190.62,15.71637082]
[1730945283965,15.71637082,190.69,190.63,15.71637082]
[1730945284880,15.71637082,190.68,190.62,15.71637082]
[1730945285691,15.71637082,190.67,190.61,15.71637082]
[1730945286388,15.71637082,190.68,190.61,15.71637082]
[1730945286882,15.71637082,190.66,190.6,15.71637082]
[1730945288185,15.71637082,190.66,190.61,0.12549]
[1730945288395,15.71637082,190.71,190.66,0.12549]
[1730945288688,16.29490402,190.78,190.7,15.71637082]
[1730945288863,16.29490402,190.78,190.72,15.71637082]
[1730945289965,15.71637082,190.75,190.69,15.71637082]
[1730945290260,15.71637082,190.74,190.68,15.71637082]
[1730945290867,15.71637082,190.71,190.65,15.71637082]
[1730945291389,15.71637082,190.72,190.66,15.71637082]
[1730945291764,15.71637082,190.77,190.71,15.71637082]
[1730945291992,0.5785332,190.78,190.73,15.71637082]
[1730945292285,0.5785332,190.78,190.74,0.12549]
[1730945292589,0.5785332,190.78,190.77,15.71637082]
[1730945292975,0.5785332,190.78,190.7,38.36017082]
[1730945292976,0.5785332,190.78,190.76,15.71637082]
[1730945293192,0.5785332,190.78,190.77,15.84186082]
[1730945293373,0.5785332,190.78,190.77,15.71637082]
[1730945293880,0.5785332,190.78,190.77,15.84186082]
[1730945294079,0.5785332,190.78,190.77,15.71637082]
[1730945295267,0.5785332,190.78,190.77,25.10796755]
[1730945296787,0.5785332,190.78,190.77,25.23345755]
[1730945298770,0.5785332,190.78,190.73,25.10796755]
[1730945299178,0.5785332,190.78,190.75,25.10796755]
[1730945299568,0.5785332,190.78,190.76,25.10796755]
[1730945299787,0.5785332,190.78,190.77,25.10796755]
[1730945300491,0.5785332,190.78,190.77,25.23345755]
[1730945301286,0.5785332,190.78,190.77,25.10796755]
[1730945302169,25.68650075,190.78,190.63,0.2]
[1730945302367,25.68650075,190.78,190.71,25.10796755]
[1730945302571,25.68650075,190.78,190.74,25.10796755]
[1730945302572,0.5785332,190.78,190.74,25.10796755]
[1730945302771,0.5785332,190.78,190.77,25.10796755]
[1730945304895,0.5785332,190.78,190.65,6.1356]
[1730945305071,0.5785332,190.78,190.72,25.10796755]
[1730945305672,0.5785332,190.78,190.73,25.10796755]
[1730945306072,0.5785332,190.78,190.74,25.10796755]
[1730945306369,0.5785332,190.78,190.77,25.10796755]
[1730945306886,0.5785332,190.78,190.76,25.10796755]
[1730945307075,0.5785332,190.78,190.74,25.10796755]
[1730945307981,0.5785332,190.78,190.66,20.12549]
[1730945308183,0.5785332,190.78,190.73,25.10796755]
[1730945308376,25.10796755,190.74,190.67,25.10796755]
[1730945308892,23.776884,190.77,190.67,25.10796755]
[1730945309095,23.776884,190.77,190.61,6.6259]
[1730945309096,0.5785332,190.78,190.72,25.10796755]
[1730945309303,0.5785332,190.78,190.73,25.10796755]
[1730945309691,0.5785332,190.78,190.61,6.6259]
[1730945309692,0.5785332,190.78,190.75,25.10796755]
[1730945310407,0.5785332,190.78,190.73,25.10796755]
[1730945310594,0.5785332,190.78,190.72,25.10796755]
[1730945310791,25.68650075,190.78,190.72,25.10796755]
[1730945311286,0.5785332,190.78,190.73,25.10796755]
[1730945311492,0.5785332,190.78,190.74,25.10796755]
[1730945311883,0.5785332,190.78,190.76,25.10796755]
[1730945312199,0.5785332,190.78,190.77,25.10796755]
[1730945312384,0.5785332,190.78,190.76,25.10796755]
[1730945313289,0.5785332,190.78,190.75,25.10796755]
[1730945313497,0.5785332,190.78,190.74,25.10796755]
[1730945313713,0.5785332,190.78,190.67,0.32549]
[1730945313890,0.5785332,190.78,190.74,25.10796755]
[1730945314499,0.5785332,190.78,190.76,25.10796755]
[1730945315109,0.5785332,190.78,190.77,25.10796755]
[1730945315313,0.5785332,190.78,190.76,25.10796755]
[1730945316189,0.5785332,190.78,190.77,25.10796755]
[1730945316799,0.5785332,190.78,190.77,25.23345755]
[1730945317284,0.5785332,190.78,190.77,45.33345755]
[1730945317687,0.5785332,190.78,190.77,45.43345755]
[1730945318014,0.5785332,190.78,190.77,45.33345755]
[1730945318493,0.5785332,190.78,190.77,94.3183091]
[1730945318808,25.10796755,190.92,190.86,25.10796755]
[1730945318987,25.10796755,190.93,190.87,25.10796755]